bitfinex/quotes_BTCUSD_20220207
["timestamp","ask_amount","ask_price","bid_price","bid_amount"]
[1644230302218,0.6962829,42610.0,42605.0,0.00063504]
[1644230302617,0.99469963,42610.0,42605.0,0.00063504]
[1644230303017,0.6962829,42610.0,42605.0,0.00063504]
[1644230303217,0.26676606,42603.0,42597.0,0.00025706]
[1644230303418,0.26676606,42603.0,42596.0,0.11842716]
[1644230303821,0.19628089,42603.0,42596.0,0.11842716]
[1644230304266,0.19493984,42603.0,42596.0,0.11842716]
[1644230304467,0.19493984,42603.0,42597.0,0.00063512]
[1644230304667,0.19493984,42603.0,42597.0,0.00089218]
[1644230304869,0.08106691,42603.0,42599.0,0.04990486]
[1644230305571,0.07606691,42603.0,42599.0,0.04990486]
[1644230305771,0.07606691,42603.0,42599.0,0.05051477]
[1644230305969,0.07606691,42603.0,42599.0,0.05077183]
[1644230306169,0.07606691,42603.0,42599.0,0.00060991]
[1644230306368,0.07606691,42603.0,42599.0,0.00086697]
[1644230306770,0.07606691,42603.0,42599.0,0.00025706]
[1644230306969,0.07606691,42603.0,42599.0,0.00060991]
[1644230307171,0.07606691,42603.0,42599.0,0.00086697]
[1644230308017,0.07606691,42603.0,42599.0,0.00025706]
[1644230308214,0.07606691,42603.0,42599.0,0.00060991]
[1644230308414,0.07606691,42603.0,42599.0,0.00086697]
[1644230308813,0.14464321,42603.0,42599.0,0.00086697]
[1644230309213,0.14464321,42603.0,42599.0,0.00025706]
[1644230309414,0.14464321,42603.0,42599.0,0.00059876]
[1644230309614,0.14464321,42603.0,42599.0,0.00085582]
[1644230310416,0.14464321,42603.0,42599.0,0.00025706]
[1644230310616,0.07606691,42603.0,42599.0,0.05931576]
[1644230310915,0.01922548,42608.0,42601.0,0.04990486]
[1644230311798,0.38784107,42610.0,42601.0,0.04990486]
[1644230311799,0.14295313,42606.0,42602.0,0.00059872]
[1644230312001,0.34174493,42606.0,42602.0,0.00085578]
[1644230312200,0.34164493,42606.0,42602.0,0.00085578]
[1644230312599,0.34164493,42606.0,42602.0,0.05050358]
[1644230312804,0.34164493,42606.0,42602.0,0.04990486]
[1644230312805,0.33664493,42606.0,42602.0,0.04990486]
[1644230313000,0.33664493,42606.0,42602.0,0.00059037]
[1644230314001,0.33664493,42606.0,42598.0,0.00025706]
[1644230314202,0.33664493,42606.0,42602.0,0.00059037]
[1644230315203,0.33664493,42606.0,42598.0,0.00025706]
[1644230315407,0.33664493,42606.0,42602.0,0.00059037]
[1644230315815,0.60731178,42606.0,42602.0,0.00059037]
[1644230316418,0.60731178,42606.0,42598.0,0.00025706]
[1644230316618,0.60731178,42606.0,42602.0,0.00059121]
[1644230317620,0.60731178,42606.0,42598.0,0.00025706]
[1644230317818,0.33664493,42606.0,42602.0,0.00059121]
[1644230318021,0.2816705,42605.0,42602.0,0.00059121]
[1644230318216,0.27012534,42605.0,42602.0,0.00059121]
[1644230318418,0.33664493,42606.0,42602.0,0.00059121]
[1644230318819,0.33664493,42606.0,42599.0,0.00025706]
[1644230319020,0.33664493,42606.0,42602.0,0.00059121]
[1644230319276,0.33164493,42606.0,42602.0,0.00059121]
[1644230319878,0.33164493,42606.0,42598.0,0.00025706]
[1644230320078,0.33164493,42606.0,42602.0,0.00059113]
[1644230320686,0.33164493,42606.0,42597.0,0.05717319]
[1644230320879,0.33164493,42606.0,42598.0,0.00025773]
[1644230321082,0.33164493,42606.0,42603.0,0.00100109]
[1644230321283,0.27149386,42605.0,42603.0,0.00100109]
[1644230323618,0.33022186,42605.0,42603.0,0.00100109]
[1644230323820,0.31116332,42604.0,42603.0,0.10100109]
[1644230325719,0.31116332,42604.0,42603.0,0.15]
[1644230325923,0.31116332,42604.0,42603.0,0.1]
[1644230326120,0.31116332,42604.0,42603.0,0.15]
[1644230326322,0.058728,42605.0,42603.0,0.15]
[1644230327674,0.70106558,42610.0,42603.0,0.15]
[1644230327873,0.62030219,42610.0,42603.0,0.15]
[1644230328275,0.058723,42608.0,42603.0,0.15]
[1644230328476,0.058728,42605.0,42603.0,0.15]
[1644230328974,0.06707401,42609.0,42603.0,0.15]
[1644230334669,0.41381713,42610.0,42604.0,0.27387069]
[1644230334871,0.35509413,42610.0,42604.0,0.32377555]
[1644230335171,0.35509413,42610.0,42604.0,0.04990486]
[1644230335569,0.35509413,42610.0,42608.0,0.08998289]
[1644230336171,0.35509413,42610.0,42607.0,0.09990486]
[1644230337168,0.35509413,42610.0,42608.0,0.058709]
[1644230337368,0.35509413,42610.0,42608.0,0.32552464]
[1644230338424,0.35509413,42610.0,42609.0,0.35902986]
[1644230338731,0.35509413,42610.0,42609.0,0.13997277]
[1644230340722,0.35509413,42610.0,42609.0,0.4127251]
[1644230342996,0.00290013,42610.0,42609.0,0.4127251]
[1644230343375,1.0,42611.0,42609.0,0.4127251]
[1644230346016,1.0,42611.0,42610.0,0.04990486]
[1644230346214,1.0,42611.0,42610.0,0.32059055]
[1644230346415,1.0,42611.0,42610.0,0.42059055]
[1644230346416,0.46374392,42611.0,42610.0,0.42059055]
[1644230346618,0.46374392,42611.0,42610.0,0.79737255]
[1644230346816,0.11164392,42611.0,42610.0,0.84467255]
[1644230347214,0.11164392,42611.0,42610.0,1.35667921]
[1644230347415,1.001,42620.0,42611.0,0.75]
[1644230347715,1.001,42620.0,42619.0,0.04990486]
[1644230347918,1.01949751,42620.0,42619.0,0.04990486]
[1644230348515,1.01949751,42620.0,42619.0,0.31689853]
[1644230348716,1.01949751,42620.0,42619.0,0.04990486]
[1644230348917,1.01949751,42620.0,42618.0,0.12887707]
[1644230349121,1.01949751,42620.0,42619.0,0.04990486]
[1644230351372,0.66741051,42620.0,42619.0,0.04990486]
[1644230351968,0.648913,42620.0,42619.0,0.04990486]
[1644230353125,0.888913,42620.0,42619.0,0.04990486]
[1644230354332,0.888913,42620.0,42618.0,0.05]
[1644230354525,0.888913,42620.0,42617.0,0.00067206]
[1644230354727,0.888913,42620.0,42615.0,0.11986676]
[1644230354929,0.888913,42620.0,42617.0,0.00067206]
[1644230354930,0.27615245,42619.0,42617.0,0.00067206]
[1644230355528,0.33485045,42619.0,42617.0,0.00067206]
[1644230355729,0.28139032,42618.0,42617.0,0.00067206]
[1644230355928,0.28139032,42618.0,42615.0,0.0199619]
[1644230356128,0.28139032,42618.0,42616.0,0.00067207]
[1644230356328,0.28139032,42618.0,42603.0,0.23369719]
[1644230356329,0.65,42616.0,42613.0,0.02125883]
[1644230356529,0.35995378,42615.0,42613.0,0.02125883]
[1644230356775,0.18853225,42617.0,42613.0,0.02125883]
[1644230356776,0.0473,42614.0,42613.0,0.02125883]
[1644230356978,0.23299892,42611.0,42604.0,0.1144]
[1644230357176,0.31635577,42614.0,42604.0,0.04990486]
[1644230357177,0.11744,42610.0,42604.0,0.04990486]
[1644230357578,0.07208708,42611.0,42604.0,0.04990486]
[1644230358382,0.33291346,42609.0,42604.0,0.04990486]
[1644230359279,0.33291346,42609.0,42604.0,0.09990486]
[1644230359481,0.33291346,42609.0,42604.0,0.21732986]
[1644230359679,0.33291346,42609.0,42604.0,0.21800205]
[1644230359880,0.33291346,42609.0,42604.0,0.16809719]
[1644230360281,0.33291346,42609.0,42604.0,0.00067219]
[1644230360720,0.33291346,42609.0,42603.0,0.158714]
[1644230361719,0.33291346,42609.0,42604.0,0.04990486]
[1644230362121,0.33291346,42609.0,42603.0,0.158714]
[1644230362318,0.33291346,42609.0,42603.0,0.208714]
[1644230362722,0.0473,42608.0,42603.0,0.208714]
[1644230362921,0.29592343,42607.0,42603.0,0.208714]
[1644230363120,0.0473,42606.0,42603.0,0.15]
[1644230364572,0.2873,42606.0,42603.0,0.15]
[1644230365171,0.2873,42606.0,42603.0,0.267419]
[1644230365775,0.2873,42606.0,42605.0,0.00100937]
[1644230365971,0.24,42606.0,42605.0,0.00100937]
[1644230369222,0.30611824,42613.0,42605.0,0.00100937]
[1644230369423,0.35410348,42612.0,42605.0,0.00100937]
[1644230369622,0.0473,42611.0,42605.0,0.00100937]
[1644230369826,0.3134419,42611.0,42605.0,0.00100937]
[1644230370224,0.28273195,42610.0,42605.0,0.00100937]
[1644230370624,0.28273195,42610.0,42606.0,0.00063186]
[1644230371525,0.28273195,42610.0,42605.0,0.00100937]
[1644230371773,0.28273195,42610.0,42606.0,0.00063186]
[1644230372772,0.28273195,42610.0,42605.0,0.00100937]
[1644230372971,0.28273195,42610.0,42606.0,0.00063186]
[1644230373874,0.28273195,42610.0,42607.0,0.25475305]
[1644230374074,0.28273195,42610.0,42606.0,0.00062387]
[1644230375175,0.61237849,42610.0,42605.0,0.00100937]
[1644230375375,0.61237849,42610.0,42606.0,0.00062387]
[1644230375620,0.52273195,42610.0,42606.0,0.00062387]
[1644230375820,0.24,42610.0,42606.0,0.00062387]
[1644230376420,0.24,42610.0,42604.0,0.08740998]
[1644230376620,0.67378301,42611.0,42606.0,0.00062387]
[1644230376819,0.28947368,42610.0,42606.0,0.00062387]
[1644230377625,0.28947368,42610.0,42604.0,0.00100616]
[1644230377821,0.67378301,42611.0,42604.0,0.00100616]
[1644230379770,0.3134419,42611.0,42604.0,0.00100616]
[1644230381072,0.3134419,42611.0,42603.0,0.22830163]
[1644230381272,0.3134419,42611.0,42605.0,0.00067025]
[1644230381473,0.28036999,42610.0,42605.0,0.00067025]
[1644230382274,0.28036999,42610.0,42603.0,0.15100616]
[1644230382474,0.28036999,42610.0,42605.0,0.00067025]
[1644230382678,0.3134419,42611.0,42605.0,0.00067025]
[1644230383521,0.3134419,42611.0,42603.0,0.48286116]
[1644230383718,0.3134419,42611.0,42606.0,0.00067025]
[1644230383922,0.27864806,42610.0,42606.0,0.00067025]
[1644230384822,0.27864806,42610.0,42603.0,0.10100616]
[1644230385121,0.27864806,42610.0,42606.0,0.00067025]
[1644230385920,0.27864806,42610.0,42603.0,0.10100616]
[1644230386121,0.3134419,42611.0,42606.0,0.00067025]
[1644230387177,0.22,42610.0,42603.0,0.15]
[1644230387378,0.22,42610.0,42606.0,0.00067024]
[1644230388386,0.49738639,42610.0,42603.0,0.15]
[1644230388581,0.49738639,42610.0,42606.0,0.00067025]
[1644230389281,0.55610539,42610.0,42606.0,0.00067025]
[1644230389480,0.55610539,42610.0,42603.0,0.15]
[1644230389682,0.55610539,42610.0,42606.0,0.00067025]
[1644230390082,0.70383787,42610.0,42606.0,0.00067025]
[1644230390283,0.55610539,42610.0,42606.0,0.00067025]
[1644230390530,0.70383787,42610.0,42606.0,0.00067025]
[1644230390723,0.55610539,42610.0,42603.0,0.15]
[1644230390922,0.70383787,42610.0,42606.0,0.00067025]
[1644230391123,0.55610539,42610.0,42608.0,0.00117238]
[1644230391323,0.29676227,42609.0,42608.0,0.00117238]
[1644230392423,0.22,42610.0,42608.0,0.00117238]
[1644230392624,0.36773248,42610.0,42608.0,0.00117238]
[1644230392825,0.22,42610.0,42608.0,0.00117238]
[1644230393226,0.22,42610.0,42608.0,0.00109941]
[1644230393426,0.28539071,42609.0,42608.0,0.00109941]
[1644230396377,0.28539071,42609.0,42606.0,0.00067024]
[1644230396777,0.30199158,42606.0,42605.0,0.0011876]
[1644230396978,0.30199158,42606.0,42605.0,0.00185785]
[1644230398027,0.30199158,42606.0,42605.0,0.0011876]
[1644230399123,0.14773248,42609.0,42605.0,0.0011876]
[1644230399328,0.22,42610.0,42605.0,0.0011876]
[1644230400124,0.49654207,42610.0,42605.0,0.0011876]
[1644230400325,0.22,42610.0,42605.0,0.07904499]
[1644230400523,0.22,42610.0,42605.0,0.07971524]
[1644230400724,0.22,42610.0,42606.0,0.04990486]
[1644230401526,0.22,42610.0,42607.0,0.058707]
[1644230401778,0.22,42610.0,42608.0,0.197163]
[1644230402180,0.22,42610.0,42608.0,0.247163]
[1644230402380,0.22,42610.0,42608.0,0.05]
[1644230402579,0.22,42610.0,42607.0,0.108707]
[1644230402979,0.22,42610.0,42607.0,0.10937723]
[1644230403482,0.22,42610.0,42608.0,0.24315736]
[1644230404283,0.21865917,42610.0,42608.0,0.24315736]
[1644230406421,0.21865917,42610.0,42607.0,0.108707]
[1644230406622,0.21865917,42610.0,42607.0,0.10937723]
[1644230407525,0.21865917,42610.0,42607.0,0.108707]
[1644230409030,0.21865917,42610.0,42607.0,0.05]
[1644230409479,0.21865917,42610.0,42606.0,0.00067024]
[1644230409878,0.21865917,42610.0,42605.0,0.38475212]
[1644230410079,0.21865917,42610.0,42606.0,0.00067025]
[1644230410278,0.21865917,42610.0,42609.0,0.04990486]
[1644230410679,0.21865917,42610.0,42607.0,0.058707]
[1644230411082,0.21865917,42610.0,42605.0,0.38475212]
[1644230411285,0.21865917,42610.0,42606.0,0.0505751]
[1644230411881,0.21865917,42610.0,42606.0,0.00067024]
[1644230412483,0.21865917,42610.0,42606.0,0.00067025]
[1644230413126,0.21865917,42610.0,42606.0,0.05057511]
[1644230413525,0.21865917,42610.0,42606.0,0.04990486]
[1644230413723,0.21865917,42610.0,42606.0,0.05057511]
[1644230414825,0.21865917,42610.0,42606.0,0.04990486]
[1644230415026,0.21865917,42610.0,42606.0,0.05057511]
[1644230415824,0.21865917,42610.0,42608.0,0.0012848]
[1644230417079,0.21865917,42610.0,42609.0,0.04990486]
[1644230417481,0.21865917,42610.0,42608.0,0.1099898]
[1644230417679,0.21865917,42610.0,42608.0,0.0012848]
[1644230417876,0.21865917,42610.0,42609.0,0.05]
[1644230418077,0.21865917,42610.0,42608.0,0.0012848]
[1644230419377,0.21865917,42610.0,42609.0,0.025789]
[1644230425880,0.21865917,42610.0,42609.0,0.02572008]
[1644230428831,0.50256366,42610.0,42609.0,0.02572008]
[1644230431532,0.21865917,42610.0,42609.0,0.02572008]
[1644230433579,0.49276063,42610.0,42609.0,0.02572008]
[1644230433979,0.21865917,42610.0,42609.0,0.02572008]
[1644230436328,0.21865917,42610.0,42609.0,0.07562494]
[1644230436528,0.21865917,42610.0,42609.0,0.21812654]
[1644230436728,0.21865917,42610.0,42609.0,0.26812654]
[1644230436930,0.21865917,42610.0,42609.0,0.07572008]
[1644230437731,0.21865917,42610.0,42609.0,0.02572008]
[1644230442179,0.21365917,42610.0,42609.0,0.02572008]
[1644230446791,0.08878814,42618.0,42611.0,0.058689]
[1644230446981,0.08878814,42618.0,42617.0,0.29784328]
[1644230447185,0.0183942,42618.0,42617.0,0.29784328]
[1644230447381,0.0183942,42618.0,42617.0,0.42078159]
[1644230447582,0.0183942,42618.0,42617.0,0.74756359]
[1644230448283,0.64953773,42620.0,42617.0,0.74756359]
[1644230448481,0.648913,42620.0,42617.0,0.42078159]
[1644230448680,0.6491294,42620.0,42617.0,0.52078159]
[1644230448882,0.6491294,42620.0,42618.0,0.26213195]
[1644230449682,0.648913,42620.0,42618.0,0.26213195]
[1644230450084,0.648913,42620.0,42617.0,0.17284317]
[1644230450547,0.001,42624.0,42617.0,0.17284317]
[1644230450548,0.17463204,42633.0,42618.0,1.6879]
[1644230450738,0.001,42638.0,42626.0,0.04990486]
[1644230450739,0.1482067,42632.0,42626.0,0.04990486]
[1644230450936,0.001,42638.0,42626.0,0.42398686]
[1644230451338,0.06798183,42636.0,42626.0,0.52398686]
[1644230451536,0.06798183,42636.0,42626.0,0.42398686]
[1644230451734,0.06798183,42636.0,42626.0,0.52398686]
[1644230451935,0.06798183,42636.0,42626.0,0.0473]
[1644230452135,0.221,42627.0,42625.0,0.05]
[1644230452335,0.221,42627.0,42620.0,0.1704]
[1644230452535,0.221,42627.0,42622.0,0.04990486]
[1644230452536,0.59099615,42627.0,42622.0,0.04990486]
[1644230452733,0.59099615,42627.0,42622.0,0.09720486]
[1644230452934,0.59099615,42627.0,42622.0,0.323113]
[1644230453138,0.59099615,42627.0,42625.0,0.0832825]
[1644230453336,0.37099615,42627.0,42625.0,0.0832825]
[1644230453737,0.37099615,42627.0,42625.0,0.05]
[1644230454135,0.37099615,42627.0,42618.0,0.7515133]
[1644230454380,0.37099615,42627.0,42622.0,0.04990486]
[1644230454779,0.00067056,42625.0,42622.0,0.04990486]
[1644230454983,0.00067056,42625.0,42621.0,0.05]
[1644230455183,0.00067056,42625.0,42618.0,0.48110486]
[1644230455184,0.00067056,42625.0,42618.0,0.05]
[1644230455381,0.00067056,42625.0,42617.0,0.5924]
[1644230455581,0.37099615,42627.0,42617.0,0.5924]
[1644230455784,0.00067057,42624.0,42617.0,0.5924]
[1644230455981,0.00067057,42624.0,42620.0,0.07464915]
[1644230456180,0.00067057,42624.0,42620.0,0.12464915]
[1644230456783,0.37099615,42627.0,42620.0,0.12464915]
[1644230458531,0.37099615,42627.0,42620.0,0.05]
[1644230458729,0.37099615,42627.0,42618.0,0.05]
[1644230459129,0.37099615,42627.0,42616.0,0.01862384]
[1644230459330,0.37099615,42627.0,42616.0,0.07731884]
[1644230459532,0.00067096,42625.0,42619.0,0.04990486]
[1644230459731,0.06307835,42622.0,42616.0,0.22546176]
[1644230459930,0.06307835,42622.0,42616.0,0.27546176]
[1644230460133,0.06307835,42622.0,42616.0,0.22546176]
[1644230460334,0.06307835,42622.0,42616.0,0.28415776]
[1644230460732,0.00067096,42623.0,42619.0,0.04990486]
[1644230460934,0.0473,42622.0,42616.0,0.25683792]
[1644230461134,0.0473,42622.0,42615.0,0.22487594]
[1644230461531,0.0473,42622.0,42615.0,0.22420486]
[1644230461779,0.0473,42622.0,42615.0,0.22487594]
[1644230461979,0.08871462,42619.0,42615.0,0.22487594]
[1644230462378,0.08871462,42619.0,42615.0,0.10057594]
[1644230462880,0.08871462,42619.0,42615.0,0.09990486]
[1644230463079,0.08871462,42619.0,42615.0,0.10057594]
[1644230463280,0.0473,42622.0,42615.0,0.10057594]
[1644230463482,0.0473,42622.0,42615.0,0.05067108]
[1644230463880,0.0473,42622.0,42615.0,0.10057594]
[1644230464081,0.0473,42622.0,42615.0,0.09990486]
[1644230464280,0.0473,42622.0,42615.0,0.10055016]
[1644230464482,0.12411843,42622.0,42615.0,0.10055016]
[1644230464883,0.0473,42622.0,42619.0,0.04990486]
[1644230465083,0.00064519,42623.0,42619.0,0.10859386]
[1644230465284,0.001,42627.0,42622.0,0.04990486]
[1644230465535,0.0006452,42623.0,42622.0,0.04990486]
[1644230466132,0.0006452,42623.0,42622.0,0.32045764]
[1644230466528,0.001,42627.0,42624.0,0.08910742]
[1644230466728,0.00064519,42625.0,42624.0,0.13910742]
[1644230467728,0.001,42627.0,42622.0,0.04990486]
[1644230467930,0.00162426,42627.0,42619.0,0.31844941]
[1644230468632,0.00162426,42627.0,42624.0,0.24]
[1644230468829,0.001,42627.0,42624.0,0.29]
[1644230469031,0.00062428,42625.0,42624.0,0.37190659]
[1644230470077,0.001,42627.0,42624.0,0.37190659]
[1644230470279,0.00162426,42627.0,42624.0,0.37190659]
[1644230470478,0.00162426,42627.0,42624.0,0.29]
[1644230471280,0.001,42627.0,42624.0,0.29]
[1644230472879,0.001,42627.0,42624.0,0.28989006]
[1644230473725,0.001,42627.0,42624.0,0.24]
[1644230475827,0.001,42627.0,42624.0,0.29]
[1644230483337,0.001,42627.0,42625.0,0.20590485]
[1644230483538,0.001,42627.0,42624.0,0.33990486]
[1644230484287,0.001,42627.0,42624.0,0.29]
[1644230484685,0.001,42627.0,42625.0,0.25095129]
[1644230485485,0.001,42627.0,42624.0,0.29]
[1644230486487,0.001,42627.0,42625.0,0.19061007]
[1644230489531,0.001,42627.0,42624.0,0.33990486]
[1644230489731,0.001,42627.0,42624.0,0.29]
[1644230490527,0.001,42627.0,42626.0,0.20190454]
[1644230490728,0.001,42627.0,42625.0,0.05]
[1644230490928,0.001,42627.0,42624.0,0.33990486]
[1644230492378,0.001,42627.0,42625.0,0.23626211]
[1644230493381,0.001,42627.0,42625.0,0.50415508]
[1644230493781,0.001,42627.0,42626.0,0.26172456]
[1644230494585,0.001,42627.0,42624.0,0.33990486]
[1644230494782,0.001,42627.0,42624.0,0.48194311]
[1644230495381,0.001,42627.0,42625.0,0.26007442]
[1644230497028,0.001,42627.0,42625.0,0.26471807]
[1644230497630,0.001,42627.0,42624.0,0.29]
[1644230498528,0.001,42627.0,42624.0,0.33990486]
[1644230499130,0.001,42627.0,42624.0,0.29]
[1644230499586,0.001,42627.0,42624.0,0.52022088]
[1644230499790,0.001,42627.0,42624.0,0.52014929]
[1644230502296,0.00048891,42627.0,42624.0,0.52014929]
[1644230502693,0.00048891,42627.0,42625.0,0.26082677]
[1644230502893,0.00048891,42627.0,42625.0,0.31073163]
[1644230503131,0.00048891,42627.0,42626.0,0.26014028]
[1644230503931,0.00048891,42627.0,42625.0,0.35903804]
[1644230504132,0.00048891,42627.0,42625.0,0.09990486]
[1644230504632,0.00048891,42627.0,42625.0,0.3596383]
[1644230504835,0.00048891,42627.0,42626.0,0.04990486]
[1644230505434,0.00048891,42627.0,42626.0,0.30968275]
[1644230506233,0.00048891,42627.0,42626.0,0.25977789]
[1644230506433,0.00048891,42627.0,42626.0,0.30968275]
[1644230506879,0.00048891,42627.0,42626.0,0.25977789]
[1644230507080,0.00048891,42627.0,42626.0,0.30968275]
[1644230507881,0.00048891,42627.0,42626.0,0.25977789]
[1644230508381,0.00048891,42627.0,42626.0,0.58655989]
[1644230509182,0.00048891,42627.0,42626.0,0.25977789]
[1644230511133,0.07524447,42634.0,42628.0,0.5]
[1644230511331,0.07524447,42634.0,42627.0,0.00046]
[1644230511332,0.07524447,42634.0,42629.0,0.32825319]
[1644230511531,0.07465226,42634.0,42629.0,0.42825319]
[1644230511929,0.07465226,42634.0,42632.0,0.25556989]
[1644230512129,0.07465226,42634.0,42633.0,0.06999558]
[1644230512932,0.07465226,42634.0,42633.0,0.70720041]
[1644230513131,0.001,42638.0,42633.0,0.70720041]
[1644230513334,0.001,42638.0,42634.0,0.37668686]
[1644230513531,0.001,42638.0,42634.0,0.42668686]
[1644230513731,0.001,42638.0,42634.0,0.09990486]
[1644230513931,0.001,42638.0,42634.0,0.05]
[1644230514132,0.001,42638.0,42633.0,0.17866058]
[1644230514985,0.001,42638.0,42634.0,0.63616961]
[1644230515187,0.001,42638.0,42634.0,0.30938761]
[1644230515987,0.00164134,42638.0,42634.0,0.04990486]
[1644230516788,0.001,42638.0,42635.0,0.376782]
[1644230516988,0.001,42638.0,42636.0,0.65365799]
[1644230517187,0.001,42638.0,42637.0,0.67462838]
[1644230517387,0.00105268,42641.0,42638.0,0.326782]
[1644230517690,0.00105268,42641.0,42639.0,0.05]
[1644230517889,0.00105268,42641.0,42640.0,0.26666897]
[1644230518530,0.12091502,42643.0,42640.0,0.32533197]
[1644230518930,0.11891502,42643.0,42640.0,0.32533197]
[1644230519834,0.11891502,42643.0,42641.0,0.08736853]
[1644230520936,0.11881751,42643.0,42641.0,0.08736853]
[1644230521135,0.11881751,42643.0,42641.0,0.30049276]
[1644230521784,0.003,42644.0,42642.0,0.24311722]
[1644230521985,0.00364375,42644.0,42642.0,0.24311722]
[1644230522383,0.00364375,42644.0,42642.0,0.5068562]
[1644230522684,0.00364375,42644.0,42642.0,0.24311722]
[1644230522886,0.003,42644.0,42642.0,0.24311722]
[1644230523287,0.00421683,42645.0,42643.0,1.1005998]
[1644230523487,0.00421683,42645.0,42642.0,0.24311722]
[1644230523488,0.22843407,42649.0,42645.0,0.3]
[1644230523786,0.08284587,42649.0,42645.0,0.058651]
[1644230523988,0.08284587,42649.0,42646.0,0.37668686]
[1644230524186,0.08284587,42649.0,42646.0,0.04990486]
[1644230524386,0.02430556,42651.0,42645.0,0.058651]
[1644230524587,0.005,42651.0,42645.0,0.058651]
[1644230525390,0.005,42651.0,42649.0,0.04990486]
[1644230525391,0.002,42650.0,42649.0,0.04990486]
[1644230525641,0.00221628,42650.0,42649.0,0.37668686]
[1644230525837,0.003,42651.0,42649.0,0.32611612]
[1644230526041,0.003,42651.0,42650.0,0.26858974]
[1644230526239,0.003,42651.0,42649.0,0.06970873]
[1644230527739,0.003,42651.0,42649.0,0.32974175]
[1644230527942,0.003,42651.0,42649.0,0.06970873]
[1644230530683,0.003,42651.0,42649.0,0.11961359]
[1644230531180,0.003,42651.0,42649.0,0.06970873]
[1644230531481,0.003,42651.0,42650.0,0.31187323]
[1644230531781,0.01596828,42653.0,42650.0,0.04990486]
[1644230531980,0.01596828,42653.0,42650.0,0.31448206]
[1644230532181,0.01596828,42653.0,42650.0,0.2645772]
[1644230532381,0.013658,42654.0,42651.0,0.35327933]
[1644230532580,0.013658,42654.0,42651.0,0.41193033]
[1644230533044,0.01,42659.0,42651.0,0.41193033]
[1644230533240,0.005,42659.0,42657.0,0.2004819]
[1644230533438,0.005,42659.0,42658.0,0.06302866]
[1644230536142,0.01086884,42659.0,42658.0,0.06302866]
[1644230538391,0.00586884,42659.0,42658.0,0.06302866]
[1644230540638,0.00066196,42660.0,42659.0,0.04545455]
[1644230541042,0.00066196,42660.0,42659.0,0.0909091]
[1644230541240,0.00066196,42660.0,42659.0,0.13636365]
[1644230541436,0.00066196,42660.0,42659.0,0.1818182]
[1644230541836,0.00066196,42660.0,42659.0,0.22727275]
[1644230547189,0.00066196,42660.0,42659.0,0.27717761]
[1644230547389,0.00066196,42660.0,42659.0,0.22727275]
[1644230548632,0.04796196,42660.0,42659.0,0.22727275]
[1644230549635,0.04796196,42660.0,42659.0,0.27727275]
[1644230549834,0.00066196,42660.0,42659.0,0.32717761]
[1644230550036,0.00066196,42660.0,42659.0,0.62717761]
[1644230550234,0.0006734,42662.0,42660.0,0.96735288]
[1644230550434,0.0006734,42662.0,42661.0,1.326782]
[1644230550435,0.00132392,42662.0,42661.0,1.326782]
[1644230550633,0.00132392,42662.0,42661.0,1.026782]
[1644230550634,0.00153937,42662.0,42661.0,1.026782]
[1644230550834,0.00086167,42668.0,42665.0,0.27043652]
[1644230551036,0.00086167,42668.0,42667.0,0.33992631]
[1644230551437,0.02137717,42669.0,42667.0,0.33992631]
[1644230551634,0.02137717,42669.0,42667.0,0.29002145]
[1644230552500,0.02137717,42669.0,42668.0,0.04990486]
[1644230552702,6.97211045,42675.0,42669.0,0.05]
[1644230553001,6.97211045,42675.0,42671.0,0.058629]
[1644230554401,6.97278642,42675.0,42671.0,0.058629]
[1644230554600,6.96778642,42675.0,42671.0,0.058629]
[1644230555201,6.96711045,42675.0,42671.0,0.058629]
[1644230555636,6.96769028,42675.0,42671.0,0.058629]
[1644230555835,2.02472994,42674.0,42671.0,0.058629]
[1644230556240,2.02472994,42674.0,42669.0,0.05]
[1644230556241,0.12059481,42673.0,42669.0,0.05]
[1644230556438,0.17142073,42673.0,42669.0,0.05]
[1644230556644,0.5906,42670.0,42669.0,0.05]
[1644230556840,0.6379,42670.0,42669.0,0.05]
[1644230557037,0.38398196,42667.0,42664.0,0.00063596]
[1644230557239,0.38398196,42667.0,42666.0,0.05]
[1644230559392,0.43128196,42667.0,42666.0,0.05]
[1644230565139,1.17188196,42667.0,42662.0,0.00067576]
[1644230565440,0.6406,42663.0,42662.0,0.00067576]
[1644230565635,0.6906,42663.0,42657.0,0.02019216]
[1644230565835,0.5906,42659.0,42657.0,0.02019216]
[1644230566036,0.0473,42658.0,42657.0,0.02019216]
[1644230566236,0.37715714,42658.0,42657.0,0.02019216]
[1644230566635,0.621885,42658.0,42651.0,0.3]
[1644230566888,0.621885,42658.0,42650.0,0.08676921]
[1644230567091,0.621885,42658.0,42651.0,0.058663]
[1644230567487,0.680557,42658.0,42651.0,0.058663]
[1644230567890,0.27612788,42654.0,42651.0,0.058663]
[1644230568088,0.680557,42658.0,42654.0,0.00017667]
[1644230568089,0.633257,42658.0,42654.0,0.00017667]
[1644230568290,0.0473,42657.0,42654.0,0.00017667]
[1644230573439,0.021609,42657.0,42654.0,0.00017667]
[1644230573839,0.02148668,42657.0,42654.0,0.00017667]
[1644230574043,0.02148668,42657.0,42655.0,0.0875519]
[1644230574286,0.02148668,42657.0,42655.0,0.1375519]
[1644230574786,0.02148668,42657.0,42655.0,0.05]
[1644230574989,0.02148668,42657.0,42654.0,0.00085193]
[1644230575787,0.02148668,42657.0,42654.0,0.00017667]
[1644230576789,0.02148668,42657.0,42655.0,0.05866]
[1644230577191,0.02148668,42657.0,42654.0,0.00017667]
[1644230578242,0.20339986,42658.0,42654.0,0.00017667]
[1644230578243,0.14472786,42658.0,42654.0,0.00017667]
[1644230578641,0.44318,42660.0,42654.0,0.00017667]
[1644230579043,0.23278941,42660.0,42654.0,0.00017667]
[1644230579642,0.06964372,42659.0,42655.0,0.00067525]
[1644230580442,0.06964372,42659.0,42654.0,0.00017667]
[1644230580443,0.0473,42658.0,42654.0,0.00017667]
[1644230580643,0.0473,42658.0,42655.0,0.00067525]
[1644230581891,0.0473,42658.0,42655.0,0.058655]
[1644230582996,0.15066575,42665.0,42657.0,0.16720086]
[1644230583293,0.5,42664.0,42657.0,0.167296]
[1644230583491,0.15720968,42665.0,42657.0,0.167296]
[1644230583691,0.15134084,42665.0,42657.0,0.167296]
[1644230583892,0.26189271,42661.0,42657.0,0.167296]
[1644230584292,0.26189271,42661.0,42657.0,0.16797123]
[1644230585096,0.31189271,42661.0,42657.0,0.16797123]
[1644230585295,0.19502724,42660.0,42657.0,0.05]